[Event "Rapid Tournament (RAP)"]
[Site "Biel, Switzerland"]
[Date "2026.07.12"]
[Round "5.8"]
[White "Erne, Raphael"]
[Black "Kozak, Adam"]
[Result "0-1"]
[TimeControl "15 + 5"]
[WhiteTitle "-"]
[BlackTitle "-"]
[WhiteFideId "1341928"]
[BlackFideId "753246"]
[WhiteElo "2122"]
[BlackElo "2592"]

1. c4 {[%clk 00:15:07]} {[%emt 00:00:03]} c5 {[%clk 00:15:04]} {[%emt
00:00:05]} 2. g3 {[%clk 00:15:07]} {[%emt 00:00:04]} Nc6 {[%clk 00:15:07]}
{[%emt 00:00:02]} 3. Bg2 {[%clk 00:15:09]} {[%emt 00:00:04]} g6 {[%clk
00:15:10]} {[%emt 00:00:02]} 4. Nc3 {[%clk 00:15:10]} {[%emt 00:00:03]} Bg7
{[%clk 00:15:13]} {[%emt 00:00:02]} 5. Nf3 {[%clk 00:15:10]} {[%emt 00:00:05]}
Rb8 {[%clk 00:15:15]} {[%emt 00:00:03]} 6. O-O {[%clk 00:14:02]} {[%emt
00:01:14]} a6 {[%clk 00:15:17]} {[%emt 00:00:03]} 7. a4 {[%clk 00:13:52]}
{[%emt 00:00:15]} d6 {[%clk 00:15:13]} {[%emt 00:00:09]} 8. d3 {[%clk
00:13:31]} {[%emt 00:00:26]} e5 {[%clk 00:14:38]} {[%emt 00:00:40]} 9. Ne1
{[%clk 00:13:12]} {[%emt 00:00:23]} Nge7 {[%clk 00:14:34]} {[%emt 00:00:09]} 10.
Nc2 {[%clk 00:13:13]} {[%emt 00:00:05]} O-O {[%clk 00:14:33]} {[%emt 00:00:06]}
11. Ne3 {[%clk 00:13:13]} {[%emt 00:00:05]} Be6 {[%clk 00:14:34]} {[%emt
00:00:04]} 12. Ned5 {[%clk 00:12:56]} {[%emt 00:00:21]} Nb4 {[%clk 00:14:36]}
{[%emt 00:00:04]} 13. e4 {[%clk 00:11:08]} {[%emt 00:01:53]} Nexd5 {[%clk
00:13:07]} {[%emt 00:01:32]} 14. Nxd5 {[%clk 00:10:47]} {[%emt 00:00:27]} Nxd5
{[%clk 00:13:05]} {[%emt 00:00:08]} 15. exd5 {[%clk 00:10:34]} {[%emt
00:00:18]} Bd7 {[%clk 00:13:01]} {[%emt 00:00:09]} 16. Bd2 {[%clk 00:08:11]}
{[%emt 00:02:27]} b5 {[%clk 00:12:50]} {[%emt 00:00:17]} 17. axb5 {[%clk
00:06:50]} {[%emt 00:01:26]} axb5 {[%clk 00:12:53]} {[%emt 00:00:02]} 18. b4
{[%clk 00:04:27]} {[%emt 00:02:28]} cxb4 {[%clk 00:11:53]} {[%emt 00:01:05]} 19.
Bxb4 {[%clk 00:04:14]} {[%emt 00:00:18]} Qb6 {[%clk 00:11:56]} {[%emt
00:00:01]} 20. cxb5 {[%clk 00:02:45]} {[%emt 00:01:35]} Bxb5 {[%clk 00:11:54]}
{[%emt 00:00:06]} 21. Rb1 {[%clk 00:02:47]} {[%emt 00:00:04]} Rfd8 {[%clk
00:11:07]} {[%emt 00:00:52]} 22. Qd2 {[%clk 00:02:36]} {[%emt 00:00:16]} Qd4
{[%clk 00:11:08]} {[%emt 00:00:04]} 23. Rfd1 {[%clk 00:02:06]} {[%emt
00:00:35]} Bxd3 {[%clk 00:08:11]} {[%emt 00:03:02]} 24. Bc3 {[%clk 00:00:35]}
{[%emt 00:01:36]} Bxb1 {[%clk 00:08:12]} {[%emt 00:00:04]} 25. Bxd4 {[%clk
00:00:39]} exd4 {[%clk 00:08:14]} {[%emt 00:00:02]} 26. Rc1 {[%clk 00:00:17]}
{[%emt 00:00:27]} Bf5 {[%clk 00:08:08]} {[%emt 00:00:11]} 27. Bf3 {[%clk
00:00:17]} {[%emt 00:00:06]} Rb3 {[%clk 00:08:06]} {[%emt 00:00:06]} 28. Kg2
{[%clk 00:00:10]} {[%emt 00:00:13]} Rc3 {[%clk 00:08:01]} {[%emt 00:00:10]} 29.
g4 {[%clk 00:00:08]} {[%emt 00:00:06]} Bc8 {[%clk 00:07:46]} {[%emt 00:00:21]}
30. Re1 {[%clk 00:00:13]} {[%emt 00:00:01]} Be5 {[%clk 00:06:05]} {[%emt
00:01:45]} 31. h3 {[%clk 00:00:14]} {[%emt 00:00:04]} Kg7 {[%clk 00:05:43]}
{[%emt 00:00:26]} 32. Rb1 {[%clk 00:00:13]} {[%emt 00:00:07]} Rd7 {[%clk
00:04:51]} {[%emt 00:00:57]} 33. Rb8 {[%clk 00:00:11]} {[%emt 00:00:06]} Rdc7
{[%clk 00:04:55]} {[%emt 00:00:01]} 34. Be4 {[%clk 00:00:11]} {[%emt 00:00:05]}
h6 {[%clk 00:04:08]} {[%emt 00:00:52]} 35. Ra8 {[%clk 00:00:10]} {[%emt
00:00:07]} Bb7 {[%clk 00:04:01]} {[%emt 00:00:13]} 36. Ra4 {[%clk 00:00:07]}
{[%emt 00:00:07]} f5 {[%clk 00:03:08]} {[%emt 00:00:58]} 37. gxf5 {[%clk
00:00:08]} {[%emt 00:00:04]} gxf5 {[%clk 00:03:12]} {[%emt 00:00:01]} 38. Bf3
{[%clk 00:00:08]} {[%emt 00:00:05]} Kh7 {[%clk 00:03:16]} {[%emt 00:00:01]} 39.
Rxd4 {[%clk 00:00:10]} {[%emt 00:00:04]} Rg7+ {[%clk 00:03:18]} {[%emt
00:00:02]} 40. Bg4 {[%clk 00:00:09]} {[%emt 00:00:06]} Bxd4 {[%clk 00:01:58]}
{[%emt 00:01:25]} 41. Qxd4 {[%clk 00:00:13]} Rc5 {[%clk 00:02:03]} 42. Kh2
{[%clk 00:00:07]} {[%emt 00:00:12]} Rxd5 {[%clk 00:02:03]} {[%emt 00:00:05]} 43.
Qb4 {[%clk 00:00:09]} {[%emt 00:00:02]} fxg4 {[%clk 00:00:34]} {[%emt
00:01:34]} 44. Qe4+ {[%clk 00:00:13]} Kh8 {[%clk 00:00:38]} {[%emt 00:00:01]}
45. Qe8+ {[%clk 00:00:07]} {[%emt 00:00:11]} Rg8 {[%clk 00:00:41]} {[%emt
00:00:02]} 46. Qe6 {[%clk 00:00:08]} {[%emt 00:00:04]} Rh5 {[%clk 00:00:14]}
{[%emt 00:00:32]} 47. Qf6+ {[%clk 00:00:12]} {[%emt 00:00:01]} Rg7 {[%clk
00:00:17]} {[%emt 00:00:02]} 48. h4 {[%clk 00:00:06]} {[%emt 00:00:12]} Kh7
{[%clk 00:00:15]} {[%emt 00:00:06]} 49. Kg3 {[%clk 00:00:07]} {[%emt 00:00:04]}
Be4 {[%emt 00:00:10]} 50. Qxd6 {[%clk 00:00:09]} {[%emt 00:00:01]} Rf5 {[%clk
00:00:15]} {[%emt 00:00:02]} 51. Qd4 {[%clk 00:00:06]} {[%emt 00:00:08]} Rf3+
{[%clk 00:00:18]} {[%emt 00:00:02]} 0-1

[Event "Rapid Tournament (RAP)"]
[Site "Biel, Switzerland"]
[Date "2026.07.12"]
[Round "5.9"]
[White "Labrovic, Jakov"]
[Black "Ganguly, Surya Shekhar"]
[Result "0-1"]
[TimeControl "15 + 5"]
[WhiteTitle "-"]
[BlackTitle "-"]
[WhiteFideId "14549786"]
[BlackFideId "5002150"]
[WhiteElo "2005"]
[BlackElo "2545"]

1. e4 {[%clk 00:15:09]} e5 {[%clk 00:15:09]} {[%emt 00:00:03]} 2. Nf3 {[%clk
00:15:11]} {[%emt 00:00:03]} Nc6 {[%clk 00:15:13]} {[%emt 00:00:01]} 3. Bb5
{[%clk 00:15:14]} {[%emt 00:00:02]} a6 {[%clk 00:15:16]} {[%emt 00:00:01]} 4.
Ba4 {[%clk 00:15:18]} {[%emt 00:00:02]} f5 {[%clk 00:15:20]} {[%emt 00:00:01]}
5. d3 {[%clk 00:15:21]} {[%emt 00:00:02]} fxe4 {[%clk 00:15:18]} {[%emt
00:00:07]} 6. dxe4 {[%clk 00:15:24]} {[%emt 00:00:02]} Nf6 {[%clk 00:15:20]}
{[%emt 00:00:02]} 7. O-O {[%clk 00:15:16]} {[%emt 00:00:13]} d6 {[%clk
00:15:20]} {[%emt 00:00:06]} 8. Re1 {[%clk 00:14:37]} {[%emt 00:00:43]} Be7
{[%clk 00:15:15]} {[%emt 00:00:10]} 9. Bb3 {[%clk 00:14:26]} {[%emt 00:00:16]}
Na5 {[%clk 00:15:12]} {[%emt 00:00:08]} 10. c3 {[%clk 00:14:28]} {[%emt
00:00:04]} Bg4 {[%clk 00:15:01]} {[%emt 00:00:15]} 11. Nbd2 {[%clk 00:14:08]}
{[%emt 00:00:25]} Qd7 {[%clk 00:14:50]} {[%emt 00:00:16]} 12. Bc2 {[%clk
00:13:16]} {[%emt 00:00:57]} O-O {[%clk 00:14:48]} {[%emt 00:00:07]} 13. Nf1
{[%clk 00:11:19]} {[%emt 00:02:03]} Kh8 {[%clk 00:14:32]} {[%emt 00:00:20]} 14.
Ng3 {[%clk 00:10:59]} {[%emt 00:00:25]} Nh5 {[%clk 00:12:42]} {[%emt 00:01:55]}
15. Nf5 {[%clk 00:10:17]} {[%emt 00:00:48]} g6 {[%clk 00:12:44]} {[%emt
00:00:03]} 16. Nxe5 {[%clk 00:09:36]} {[%emt 00:00:46]} Bxd1 {[%clk 00:12:47]}
{[%emt 00:00:02]} 17. Nxd7 {[%clk 00:09:38]} {[%emt 00:00:03]} Bxc2 {[%clk
00:12:50]} {[%emt 00:00:02]} 18. Nxf8 {[%clk 00:07:10]} {[%emt 00:02:32]} Bxf8
{[%clk 00:09:13]} {[%emt 00:03:42]} 19. Nd4 {[%clk 00:07:07]} {[%emt 00:00:09]}
Ba4 {[%clk 00:09:16]} {[%emt 00:00:01]} 20. Ne6 {[%clk 00:06:07]} {[%emt
00:01:06]} Rc8 {[%clk 00:09:18]} {[%emt 00:00:03]} 21. Be3 {[%clk 00:05:26]}
{[%emt 00:00:45]} Be7 {[%clk 00:09:03]} {[%emt 00:00:20]} 22. Nxc7 {[%clk
00:04:57]} {[%emt 00:00:35]} Rxc7 {[%clk 00:09:00]} {[%emt 00:00:07]} 23. Bb6
{[%clk 00:05:01]} {[%emt 00:00:02]} Rc5 {[%clk 00:08:55]} {[%emt 00:00:10]} 24.
Bxc5 {[%clk 00:05:04]} {[%emt 00:00:02]} dxc5 {[%clk 00:08:56]} {[%emt
00:00:04]} 25. b3 {[%emt 00:01:08]} Bd7 {[%clk 00:08:49]} 26. Rad1 {[%clk
00:03:45]} {[%emt 00:00:32]} Be6 {[%clk 00:08:53]} {[%emt 00:00:01]} 27. g3
{[%clk 00:03:40]} {[%emt 00:00:09]} g5 {[%clk 00:08:56]} {[%emt 00:00:03]} 28.
Rf1 {[%clk 00:03:12]} {[%emt 00:00:32]} Nc6 {[%clk 00:08:35]} {[%emt 00:00:26]}
29. f4 {[%clk 00:03:10]} {[%emt 00:00:07]} gxf4 {[%clk 00:08:35]} {[%emt
00:00:05]} 30. gxf4 {[%clk 00:03:14]} {[%emt 00:00:02]} Bh3 {[%clk 00:08:38]}
{[%emt 00:00:01]} 31. Rf2 {[%clk 00:03:01]} {[%emt 00:00:17]} Bh4 {[%clk
00:08:39]} {[%emt 00:00:04]} 32. e5 {[%clk 00:02:23]} {[%emt 00:00:44]} Kg7
{[%clk 00:07:07]} {[%emt 00:01:37]} 33. Rf3 {[%clk 00:02:16]} {[%emt 00:00:12]}
Bg4 {[%clk 00:07:09]} {[%emt 00:00:03]} 34. Kg2 {[%clk 00:02:20]} {[%emt
00:00:01]} Nxf4+ {[%clk 00:05:20]} {[%emt 00:01:55]} 35. Rxf4 {[%clk 00:02:17]}
{[%emt 00:00:08]} Bxd1 {[%clk 00:05:23]} {[%emt 00:00:01]} 36. Rxh4 {[%clk
00:02:02]} {[%emt 00:00:20]} Nxe5 {[%clk 00:05:27]} {[%emt 00:00:01]} 37. b4
{[%clk 00:01:31]} {[%emt 00:00:37]} cxb4 {[%clk 00:05:06]} {[%emt 00:00:26]} 38.
cxb4 {[%clk 00:01:32]} {[%emt 00:00:04]} Bg4 {[%clk 00:04:28]} {[%emt
00:00:43]} 39. h3 {[%clk 00:01:15]} {[%emt 00:00:21]} Be6 {[%clk 00:04:29]}
{[%emt 00:00:04]} 40. Rd4 {[%clk 00:00:48]} {[%emt 00:00:32]} Bxa2 {[%clk
00:04:23]} {[%emt 00:00:11]} 41. Kg3 {[%clk 00:00:50]} {[%emt 00:00:02]} Be6
{[%clk 00:04:13]} {[%emt 00:00:16]} 42. h4 {[%clk 00:00:47]} {[%emt 00:00:08]}
Nc6 {[%clk 00:04:12]} {[%emt 00:00:06]} 43. Re4 {[%clk 00:00:42]} {[%emt
00:00:09]} Kf6 {[%clk 00:04:13]} {[%emt 00:00:06]} 44. Kf2 {[%clk 00:00:34]}
{[%emt 00:00:13]} h5 {[%clk 00:04:08]} {[%emt 00:00:09]} 45. Ke3 {[%clk
00:00:35]} {[%emt 00:00:04]} b5 {[%clk 00:04:10]} {[%emt 00:00:03]} 46. Rf4+
{[%clk 00:00:38]} {[%emt 00:00:03]} Bf5 {[%clk 00:04:08]} {[%emt 00:00:07]} 47.
Rf1 {[%clk 00:00:13]} {[%emt 00:00:29]} Ke5 {[%clk 00:03:55]} {[%emt 00:00:18]}
48. Rc1 {[%clk 00:00:12]} {[%emt 00:00:06]} Nxb4 {[%clk 00:03:58]} {[%emt
00:00:02]} 49. Rc5+ {[%clk 00:00:15]} {[%emt 00:00:02]} Nd5+ {[%clk 00:04:02]}
{[%emt 00:00:01]} 50. Kd2 {[%clk 00:00:17]} {[%emt 00:00:02]} Kd4 {[%clk
00:03:56]} {[%emt 00:00:12]} 51. Rc6 {[%clk 00:00:18]} {[%emt 00:00:04]} a5
{[%clk 00:03:59]} {[%emt 00:00:03]} 52. Rh6 {[%clk 00:00:19]} {[%emt 00:00:03]}
Bg4 {[%clk 00:04:02]} {[%emt 00:00:03]} 53. Rd6 {[%clk 00:00:21]} {[%emt
00:00:03]} a4 {[%clk 00:04:04]} {[%emt 00:00:03]} 54. Kc1 {[%clk 00:00:24]}
{[%emt 00:00:01]} Kc4 {[%clk 00:04:01]} {[%emt 00:00:09]} 55. Kb2 {[%clk
00:00:25]} {[%emt 00:00:03]} b4 {[%clk 00:03:58]} {[%emt 00:00:08]} 56. Ra6
{[%clk 00:00:22]} {[%emt 00:00:08]} a3+ {[%clk 00:04:00]} {[%emt 00:00:04]} 57.
Ka2 {[%clk 00:00:25]} {[%emt 00:00:01]} Nc3+ {[%clk 00:03:39]} {[%emt
00:00:27]} 58. Ka1 {[%clk 00:00:28]} {[%emt 00:00:01]} Ne4 {[%clk 00:03:43]}
{[%emt 00:00:02]} 59. Ka2 {[%clk 00:00:28]} {[%emt 00:00:05]} Nc5 {[%clk
00:03:46]} {[%emt 00:00:02]} 60. Ra7 {[%clk 00:00:28]} {[%emt 00:00:05]} Be6
{[%clk 00:03:46]} {[%emt 00:00:05]} 61. Ka1 {[%clk 00:00:28]} {[%emt 00:00:05]}
Nb3+ {[%clk 00:03:38]} {[%emt 00:00:12]} 62. Ka2 {[%clk 00:00:29]} {[%emt
00:00:04]} Nd4 {[%clk 00:03:41]} {[%emt 00:00:02]} 63. Ka1 {[%clk 00:00:32]}
{[%emt 00:00:02]} Nc2+ {[%clk 00:03:40]} {[%emt 00:00:07]} 64. Kb1 {[%clk
00:00:34]} {[%emt 00:00:02]} b3 {[%clk 00:03:38]} {[%emt 00:00:07]} 65. Rc7+
{[%clk 00:00:36]} {[%emt 00:00:03]} Kd4 {[%clk 00:03:41]} {[%emt 00:00:02]} 66.
Ra7 {[%clk 00:00:12]} {[%emt 00:00:29]} a2+ {[%clk 00:03:44]} {[%emt 00:00:02]}
67. Kb2 {[%clk 00:00:06]} {[%emt 00:00:11]} a1=Q+ {[%clk 00:03:47]} {[%emt
00:00:03]} 0-1

[Event "Rapid Tournament (RAP)"]
[Site "Biel, Switzerland"]
[Date "2026.07.12"]
[Round "5.10"]
[White "Acs, Peter"]
[Black "Menzi, Jonas"]
[Result "1-0"]
[TimeControl "15 + 5"]
[WhiteTitle "-"]
[BlackTitle "-"]
[WhiteFideId "708020"]
[BlackFideId "1345133"]
[WhiteElo "2474"]
[BlackElo "2114"]

1. e4 {[%clk 00:15:07]} {[%emt 00:00:04]} e5 {[%clk 00:15:09]} 2. Nf3 {[%clk
00:15:10]} {[%emt 00:00:03]} Nc6 {[%clk 00:15:12]} {[%emt 00:00:02]} 3. d4
{[%clk 00:15:09]} {[%emt 00:00:06]} exd4 {[%clk 00:15:15]} {[%emt 00:00:02]} 4.
Bc4 {[%clk 00:15:10]} {[%emt 00:00:03]} Nf6 {[%clk 00:15:15]} {[%emt 00:00:06]}
5. e5 {[%clk 00:15:12]} {[%emt 00:00:02]} d5 {[%clk 00:15:18]} {[%emt
00:00:03]} 6. Bb5 {[%emt 00:00:05]} Ne4 {[%clk 00:15:21]} 7. Nxd4 {[%clk
00:15:12]} {[%emt 00:00:07]} Bc5 {[%clk 00:15:16]} {[%emt 00:00:09]} 8. Be3
{[%clk 00:14:13]} {[%emt 00:01:04]} O-O {[%clk 00:15:17]} {[%emt 00:00:05]} 9.
Nxc6 {[%clk 00:13:41]} {[%emt 00:00:37]} bxc6 {[%clk 00:15:19]} {[%emt
00:00:02]} 10. Bxc5 {[%clk 00:13:40]} {[%emt 00:00:07]} Nxc5 {[%clk 00:15:22]}
{[%emt 00:00:01]} 11. Bxc6 {[%clk 00:13:37]} {[%emt 00:00:08]} Rb8 {[%clk
00:15:27]} 12. Qxd5 {[%clk 00:13:20]} {[%emt 00:00:22]} Qe7 {[%clk 00:15:31]}
{[%emt 00:00:01]} 13. O-O {[%clk 00:13:14]} {[%emt 00:00:11]} Rd8 {[%clk
00:14:51]} {[%emt 00:00:44]} 14. Qf3 {[%clk 00:13:11]} {[%emt 00:00:08]} Ne6
{[%clk 00:14:55]} {[%emt 00:00:02]} 15. Nc3 {[%clk 00:09:10]} {[%emt 00:04:06]}
Nd4 {[%clk 00:12:09]} {[%emt 00:02:51]} 16. Qe4 {[%clk 00:09:04]} {[%emt
00:00:11]} Bf5 {[%clk 00:11:58]} {[%emt 00:00:15]} 17. Nd5 {[%clk 00:08:49]}
{[%emt 00:00:21]} Qc5 {[%clk 00:11:11]} {[%emt 00:00:52]} 18. Qe3 {[%clk
00:08:50]} {[%emt 00:00:04]} Kh8 {[%clk 00:06:20]} {[%emt 00:04:56]} 19. Rfd1
{[%clk 00:08:35]} {[%emt 00:00:20]} Qxc6 {[%clk 00:06:13]} {[%emt 00:00:11]} 20.
Qxd4 {[%clk 00:08:33]} {[%emt 00:00:07]} Qxc2 {[%clk 00:04:56]} {[%emt
00:01:23]} 21. Rd2 {[%clk 00:06:27]} {[%emt 00:02:10]} Qe4 {[%clk 00:03:05]}
{[%emt 00:01:56]} 22. Qxe4 {[%clk 00:06:13]} {[%emt 00:00:20]} Bxe4 {[%clk
00:03:08]} {[%emt 00:00:01]} 23. Rad1 {[%clk 00:06:16]} {[%emt 00:00:03]} c6
{[%clk 00:02:07]} {[%emt 00:01:06]} 24. Ne3 {[%clk 00:05:14]} {[%emt 00:01:07]}
Rxd2 {[%clk 00:01:40]} {[%emt 00:00:32]} 25. Rxd2 {[%clk 00:05:17]} {[%emt
00:00:02]} g5 {[%clk 00:01:18]} {[%emt 00:00:27]} 26. f3 {[%clk 00:04:58]}
{[%emt 00:00:24]} Bg6 {[%clk 00:01:12]} {[%emt 00:00:12]} 27. Kf2 {[%clk
00:04:40]} {[%emt 00:00:22]} Rb5 {[%clk 00:00:41]} {[%emt 00:00:35]} 28. Nc4
{[%clk 00:04:36]} {[%emt 00:00:10]} Rb4 {[%clk 00:00:16]} {[%emt 00:00:31]} 29.
b3 {[%clk 00:04:26]} {[%emt 00:00:14]} Kg7 {[%clk 00:00:14]} {[%emt 00:00:07]}
30. Ke3 {[%clk 00:04:27]} {[%emt 00:00:04]} h6 {[%clk 00:00:10]} {[%emt
00:00:09]} 31. Kd4 {[%clk 00:03:35]} {[%emt 00:00:57]} Rb5 {[%clk 00:00:14]}
{[%emt 00:00:02]} 32. Kc3 {[%clk 00:03:38]} {[%emt 00:00:01]} Bf5 {[%clk
00:00:08]} {[%emt 00:00:11]} 33. Rd6 {[%clk 00:02:40]} {[%emt 00:01:03]} Be6
{[%clk 00:00:09]} {[%emt 00:00:04]} 34. a4 {[%clk 00:02:16]} {[%emt 00:00:29]}
Rc5 {[%clk 00:00:09]} {[%emt 00:00:04]} 35. Kd4 {[%clk 00:01:38]} {[%emt
00:00:43]} Rd5+ {[%clk 00:00:12]} {[%emt 00:00:03]} 36. Rxd5 {[%clk 00:01:38]}
{[%emt 00:00:06]} Bxd5 {[%clk 00:00:16]} {[%emt 00:00:01]} 37. b4 {[%clk
00:01:31]} {[%emt 00:00:11]} f6 {[%clk 00:00:08]} {[%emt 00:00:13]} 38. Ne3
{[%clk 00:01:18]} {[%emt 00:00:18]} fxe5+ {[%clk 00:00:08]} {[%emt 00:00:05]}
39. Kxe5 {[%clk 00:01:20]} {[%emt 00:00:02]} Bb3 {[%clk 00:00:13]} 40. a5
{[%clk 00:01:22]} {[%emt 00:00:04]} Ba4 {[%clk 00:00:08]} {[%emt 00:00:09]} 41.
Nf5+ {[%clk 00:01:09]} {[%emt 00:00:17]} Kg6 {[%clk 00:00:13]} {[%emt
00:00:01]} 42. Nd4 {[%clk 00:01:09]} {[%emt 00:00:05]} h5 {[%clk 00:00:10]}
{[%emt 00:00:08]} 43. Kd6 {[%clk 00:01:09]} {[%emt 00:00:05]} a6 {[%clk
00:00:06]} {[%emt 00:00:09]} 44. Nxc6 {[%clk 00:01:08]} {[%emt 00:00:06]} Bb5
{[%clk 00:00:10]} 45. Nd4 {[%clk 00:00:59]} {[%emt 00:00:14]} Bf1 {[%clk
00:00:14]} 46. b5 {[%clk 00:00:44]} {[%emt 00:00:20]} 1-0

[Event "Rapid Tournament (RAP)"]
[Site "Biel, Switzerland"]
[Date "2026.07.12"]
[Round "5.11"]
[White "Laub, Patrick"]
[Black "Gloeckler, Christian"]
[Result "0-1"]
[TimeControl "15 + 5"]
[WhiteTitle "-"]
[BlackTitle "-"]
[WhiteFideId "1302566"]
[BlackFideId "34608966"]
[WhiteElo "1949"]
[BlackElo "2332"]

1. e4 {[%clk 00:14:59]} {[%emt 00:00:09]} c5 {[%clk 00:15:05]} {[%emt
00:00:02]} 2. Nc3 {[%clk 00:14:59]} {[%emt 00:00:02]} d6 {[%clk 00:15:05]} 3.
Bc4 {[%clk 00:14:54]} {[%emt 00:00:10]} Nc6 {[%clk 00:14:50]} {[%emt 00:00:20]}
4. f4 {[%clk 00:14:50]} {[%emt 00:00:08]} g6 {[%clk 00:14:43]} {[%emt
00:00:12]} 5. Nf3 {[%clk 00:14:47]} {[%emt 00:00:08]} Bg7 {[%clk 00:14:33]}
{[%emt 00:00:15]} 6. O-O {[%clk 00:14:47]} {[%emt 00:00:05]} Nf6 {[%clk
00:14:33]} {[%emt 00:00:04]} 7. d3 {[%clk 00:12:46]} {[%emt 00:02:07]} e6
{[%clk 00:14:08]} {[%emt 00:00:30]} 8. Bb5 {[%clk 00:12:37]} {[%emt 00:00:14]}
Bd7 {[%clk 00:13:41]} {[%emt 00:00:31]} 9. a3 {[%clk 00:12:25]} {[%emt
00:00:17]} O-O {[%clk 00:13:23]} {[%emt 00:00:23]} 10. Kh1 {[%clk 00:12:00]}
{[%emt 00:00:30]} d5 {[%clk 00:12:54]} {[%emt 00:00:35]} 11. e5 {[%clk
00:11:04]} {[%emt 00:01:01]} Ne8 {[%clk 00:11:37]} {[%emt 00:01:21]} 12. d4
{[%clk 00:08:58]} {[%emt 00:02:11]} cxd4 {[%clk 00:11:16]} {[%emt 00:00:26]} 13.
Nxd4 {[%clk 00:08:58]} {[%emt 00:00:04]} Nxd4 {[%clk 00:11:01]} {[%emt
00:00:20]} 14. Qxd4 {[%clk 00:08:29]} {[%emt 00:00:34]} Bxb5 {[%clk 00:10:52]}
{[%emt 00:00:15]} 15. Nxb5 {[%clk 00:08:29]} {[%emt 00:00:02]} a6 {[%clk
00:10:51]} {[%emt 00:00:06]} 16. Nc3 {[%clk 00:08:25]} {[%emt 00:00:09]} Nd6
{[%clk 00:09:53]} {[%emt 00:01:04]} 17. Qb4 {[%clk 00:06:30]} {[%emt 00:02:00]}
Nf5 {[%clk 00:09:47]} {[%emt 00:00:10]} 18. g4 {[%clk 00:03:23]} {[%emt
00:03:12]} a5 {[%clk 00:09:12]} {[%emt 00:00:41]} 19. Qb5 {[%clk 00:02:58]}
{[%emt 00:00:29]} Nd4 {[%clk 00:09:02]} {[%emt 00:00:15]} 20. Qd3 {[%clk
00:02:58]} {[%emt 00:00:03]} Nc6 {[%clk 00:09:02]} {[%emt 00:00:03]} 21. g5
{[%clk 00:02:26]} {[%emt 00:00:37]} Re8 {[%clk 00:07:54]} {[%emt 00:01:13]} 22.
h4 {[%clk 00:01:44]} {[%emt 00:00:46]} h5 {[%clk 00:07:27]} {[%emt 00:00:32]}
23. Bd2 {[%clk 00:00:55]} {[%emt 00:00:54]} Ne7 {[%clk 00:06:50]} {[%emt
00:00:43]} 24. Nb5 {[%clk 00:00:55]} {[%emt 00:00:05]} Nf5 {[%clk 00:06:50]}
{[%emt 00:00:02]} 25. Nd4 {[%clk 00:00:55]} {[%emt 00:00:05]} Nxd4 {[%clk
00:06:17]} {[%emt 00:00:37]} 26. Qxd4 {[%clk 00:00:55]} {[%emt 00:00:02]} Rc8
{[%clk 00:06:14]} {[%emt 00:00:08]} 27. Bc3 {[%clk 00:00:47]} {[%emt 00:00:13]}
Rc4 {[%clk 00:06:11]} {[%emt 00:00:08]} 28. Qd2 {[%clk 00:00:47]} {[%emt
00:00:02]} b6 {[%clk 00:05:32]} {[%emt 00:00:45]} 29. Rad1 {[%clk 00:00:37]}
{[%emt 00:00:15]} Qc7 {[%clk 00:05:21]} {[%emt 00:00:16]} 30. Rf2 {[%clk
00:00:36]} {[%emt 00:00:06]} Rc8 {[%clk 00:05:15]} {[%emt 00:00:11]} 31. Rc1
{[%clk 00:00:26]} {[%emt 00:00:15]} d4 {[%clk 00:05:15]} 32. Bxd4 {[%clk
00:00:26]} {[%emt 00:00:04]} Rd8 {[%clk 00:05:15]} 0-1